fUST/lending_fUST_20240222
["ID","MTS","AMOUNT","RATE_DAILY","PERIOD"]
[314711936,1708537848613,-1000.0,0.00021214,2]
[314711937,1708537848624,-500.0,0.00021236,2]
[314711938,1708537848634,-1000.0,0.00021254,2]
[314711939,1708537848643,-1000.0,0.00021254,2]
[314711940,1708537848654,-1000.0,0.00021254,2]
[314711941,1708537848663,-1000.0,0.00021254,2]
[314711942,1708537848672,-1000.0,0.00021254,2]
[314711943,1708537848685,-1000.0,0.00021254,2]
[314711944,1708537848694,-222.49847389,0.00021254,2]
[314711945,1708537848706,-1000.0,0.00021254,2]
[314711946,1708537848714,-1000.0,0.00021254,2]
[314711947,1708537848724,-1000.0,0.00021254,2]
[314711948,1708537848733,-1000.0,0.00021254,2]
[314711949,1708537848742,-1000.0,0.00021254,2]
[314711950,1708537848751,-1000.0,0.00021254,2]
[314711951,1708537848762,-1000.0,0.00021254,2]
[314711952,1708537848771,-236449.45540848,0.00021283,2]
[314711953,1708537848781,-445.12735737,0.00021331,2]
[314711954,1708537848790,-500.0,0.00021331,2]
[314711955,1708537848799,-500.0,0.00021331,2]
[314711956,1708537848808,-500.0,0.00021331,2]
[314711957,1708537848817,-500.0,0.00021331,2]
[314711958,1708537848827,-500.0,0.00021331,2]
[314711959,1708537848837,-500.0,0.00021331,2]
[314711960,1708537848847,-500.0,0.00021332,2]
[314711961,1708537848856,-755.78,0.00021333,2]
[314711962,1708537848866,-500.0,0.00021333,2]
[314711963,1708537848875,-500.0,0.00021333,2]
[314711964,1708537848884,-868.37,0.00021333,2]
[314711965,1708537848894,-4085.86,0.00021333,2]
[314711966,1708537848903,-692.97,0.00021333,2]
[314711967,1708537848913,-3028.49,0.00021333,2]
[314711968,1708537848922,-316.84531748,0.00021333,2]
[314711969,1708537848931,-1779.16,0.00021333,2]
[314711970,1708537848941,-1273.98,0.00021333,2]
[314711971,1708537848951,-500.0,0.00021333,2]
[314711972,1708537848960,-500.0,0.00021333,2]
[314711973,1708537848970,-1666.62,0.00021333,2]
[314711974,1708537848979,-500.0,0.00021333,2]
[314711975,1708537848988,-951.99,0.00021333,2]
[314711976,1708537848998,-1132.46,0.00021333,2]
[314711977,1708537849010,-500.0,0.00021333,2]
[314711978,1708537849021,-2495.32,0.00021333,2]
[314711979,1708537849029,-500.0,0.00021333,2]
[314711980,1708537849038,-7833.34,0.00021333,2]
[314711981,1708537849047,-1034.38,0.00021333,2]
[314711982,1708537849057,-1299.51,0.00021333,2]
[314711983,1708537849067,-651.36,0.00021333,2]
[314711984,1708537849078,-5669.61,0.00021333,2]
[314711985,1708537849087,-711.14,0.00021333,2]
[314711986,1708537849098,-500.0,0.00021333,2]
[314711987,1708537849108,-3187.59,0.00021333,2]
[314711988,1708537849117,-544.24,0.00021334,2]
[314711989,1708537849126,-895.56,0.00021334,2]
[314711990,1708537849135,-530.29,0.00021334,2]
[314711991,1708537849144,-500.0,0.00021334,2]
[314711992,1708537849154,-577.46,0.00021334,2]
[314711993,1708537849163,-500.0,0.00021334,2]
[314711994,1708537849172,-1996.86,0.00021334,2]
[314711995,1708537849182,-513.87,0.00021334,2]
[314711996,1708537849192,-922.13,0.00021334,2]
[314711997,1708537849202,-500.0,0.00021334,2]
[314711998,1708537849211,-500.0,0.00021334,2]
[314711999,1708537849220,-500.0,0.00021334,2]
[314712000,1708537849230,-500.0,0.00021334,2]
[314712001,1708537849239,-642.04643685,0.00021334,2]
[314712002,1708537849248,-500.0,0.00021334,2]
[314712003,1708537849258,-1971.02,0.00021334,2]
[314712004,1708537849271,-994.12,0.00021334,2]
[314712005,1708537849281,-1164.22,0.00021334,2]
[314712006,1708537849290,-2416.78,0.00021334,2]
[314712007,1708537849300,-500.0,0.00021334,2]
[314712008,1708537849310,-500.0,0.00021334,2]
[314712009,1708537849319,-244.35434703,0.00021334,2]
[314712010,1708537849328,-500.0,0.00021334,2]
[314712011,1708537849337,-500.0,0.00021334,2]
[314712012,1708537849346,-500.0,0.00021334,2]
[314712013,1708537849356,-1251.84,0.00021334,2]
[314712014,1708537849366,-500.0,0.00021334,2]
[314712015,1708537849375,-531.02,0.00021334,2]
[314712016,1708537849384,-500.0,0.00021335,2]
[314712017,1708537849394,-500.0,0.00021335,2]
[314712018,1708537849403,-300.0,0.00021352,2]
[314712019,1708537849412,-1750.0,0.000215,2]
[314712020,1708537849421,-153.0,0.000215,2]
[314712021,1708537849431,-500.0,0.0002151,2]
[314712022,1708537849440,-300.0,0.00021521,2]
[314712023,1708537849450,-153.0,0.00021562,2]
[314712024,1708537849459,-153.0,0.00021562,2]
[314712025,1708537849469,-153.0,0.00021562,2]
[314712026,1708537849479,-153.0,0.00021562,2]
[314712027,1708537849488,-153.0,0.00021562,2]
[314712028,1708537849498,-153.0,0.00021562,2]
[314712029,1708537849507,-153.0,0.00021562,2]
[314712030,1708537849519,-153.0,0.00021562,2]
[314712031,1708537849528,-1629.57303805,0.00021569,2]
[314712032,1708537849538,-500.0,0.00021606,2]
[314712033,1708537849548,-755.78,0.00021607,2]
[314712034,1708537849557,-500.0,0.00021607,2]
[314712035,1708537849566,-500.0,0.00021607,2]
[314712036,1708537849575,-868.37,0.00021607,2]
[314712037,1708537849584,-4085.86,0.00021607,2]
[314712038,1708537849594,-692.97,0.00021607,2]
[314712039,1708537849604,-3028.49,0.00021607,2]
[314712040,1708537849613,-1779.16,0.00021607,2]
[314712041,1708537849623,-1273.98,0.00021607,2]
[314712042,1708537849632,-500.0,0.00021607,2]
[314712043,1708537849641,-500.0,0.00021607,2]
[314712044,1708537849650,-1666.62,0.00021607,2]
[314712045,1708537849661,-500.0,0.00021607,2]
[314712046,1708537849670,-951.99,0.00021607,2]
[314712047,1708537849680,-1132.46,0.00021607,2]
[314712048,1708537849689,-500.0,0.00021607,2]
[314712049,1708537849698,-2495.32,0.00021607,2]
[314712050,1708537849708,-500.0,0.00021607,2]
[314712051,1708537849719,-7833.34,0.00021607,2]
[314712052,1708537849729,-1034.38,0.00021607,2]
[314712053,1708537849738,-1299.51,0.00021607,2]
[314712054,1708537849747,-651.36,0.00021607,2]
[314712055,1708537849757,-5669.61,0.00021607,2]
[314712056,1708537849769,-711.14,0.00021607,2]
[314712057,1708537849778,-500.0,0.00021607,2]
[314712058,1708537849787,-3187.59,0.00021607,2]
[314712059,1708537849796,-544.24,0.00021608,2]
[314712060,1708537849806,-895.56,0.00021608,2]
[314712061,1708537849816,-530.29,0.00021608,2]
[314712062,1708537849825,-500.0,0.00021608,2]
[314712063,1708537849835,-577.46,0.00021608,2]
[314712064,1708537849845,-344.052387,0.00021608,2]
[314712065,1708537849854,-1996.86,0.00021608,2]
[314712066,1708537849863,-513.87,0.00021608,2]
[314712067,1708537849873,-922.13,0.00021608,2]
[314712068,1708537849882,-500.0,0.00021608,2]
[314712069,1708537849891,-500.0,0.00021608,2]
[314712070,1708537849901,-500.0,0.00021608,2]
[314712071,1708537849909,-500.0,0.00021608,2]
[314712072,1708537849919,-500.0,0.00021608,2]
[314712073,1708537849928,-1971.02,0.00021608,2]
[314712074,1708537849937,-994.12,0.00021608,2]
[314712075,1708537849946,-1164.22,0.00021608,2]
[314712076,1708537849955,-2416.78,0.00021608,2]
[314712077,1708537849966,-500.0,0.00021608,2]
[314712078,1708537849975,-500.0,0.00021608,2]
[314712079,1708537849984,-500.0,0.00021608,2]
[314712080,1708537849994,-500.0,0.00021608,2]
[314712081,1708537850003,-500.0,0.00021608,2]
[314712082,1708537850015,-1251.84,0.00021608,2]
[314712083,1708537850025,-289.51782177,0.00021608,2]
[314712084,1708537850034,-531.02,0.00021608,2]
[314712085,1708537850043,-405.1124344,0.00021609,2]
[314712086,1708537850053,-500.0,0.00021609,2]
[314712087,1708537850062,-300.0,0.00021689,2]
[314712088,1708537850072,-50000.0,0.0002178,2]
[314712089,1708537850081,-500.0,0.00021784,2]
[314712090,1708537850091,-183.70268941,0.000218,2]
[314712091,1708537850100,-300.0,0.00021858,2]
[314712092,1708537850110,-500.0,0.0002188,2]
[314712093,1708537850118,-755.78,0.00021881,2]
[314712094,1708537850128,-500.0,0.00021881,2]
[314712095,1708537850137,-500.0,0.00021881,2]
[314712096,1708537850147,-868.37,0.00021881,2]
[314712097,1708537850156,-4085.86,0.00021881,2]
[314712098,1708537850165,-692.97,0.00021881,2]
[314712099,1708537850175,-3028.49,0.00021881,2]
[314712100,1708537850184,-1779.16,0.00021881,2]
[314712101,1708537850193,-1273.98,0.00021881,2]
[314712102,1708537850203,-500.0,0.00021881,2]
[314712103,1708537850215,-500.0,0.00021881,2]
[314712104,1708537850225,-1666.62,0.00021881,2]
[314712105,1708537850234,-500.0,0.00021881,2]
[314712106,1708537850243,-951.99,0.00021881,2]
[314712107,1708537850252,-1132.46,0.00021881,2]
[314712108,1708537850264,-500.0,0.00021881,2]
[314712109,1708537850273,-2495.32,0.00021881,2]
[314712110,1708537850282,-500.0,0.00021881,2]
[314712111,1708537850291,-7833.34,0.00021881,2]
[314712112,1708537850301,-1034.38,0.00021881,2]
[314712113,1708537850310,-1299.51,0.00021881,2]
[314712114,1708537850320,-651.36,0.00021881,2]
[314712115,1708537850329,-5669.61,0.00021881,2]
[314712116,1708537850338,-711.14,0.00021881,2]
[314712117,1708537850347,-614.21884469,0.00021881,2]
[314712118,1708537850357,-76042.20128526,0.00021881,2]
[314712119,1708537850366,-544.24,0.00021882,2]
[314712120,1708537850375,-895.56,0.00021882,2]
[314712121,1708537850384,-530.29,0.00021882,2]
[314712122,1708537850395,-500.0,0.00021882,2]
[314712123,1708537850405,-577.46,0.00021882,2]
[314712124,1708537850414,-1996.86,0.00021882,2]
[314712125,1708537850423,-513.87,0.00021882,2]
[314712126,1708537850433,-922.13,0.00021882,2]
[314712127,1708537850442,-500.0,0.00021882,2]
[314712128,1708537850452,-500.0,0.00021882,2]
[314712129,1708537850461,-500.0,0.00021882,2]
[314712130,1708537850471,-280.67304609,0.00021882,2]
[314712131,1708537850480,-500.0,0.00021882,2]
[314712132,1708537850490,-1971.02,0.00021882,2]
[314712133,1708537850499,-994.12,0.00021882,2]
[314712134,1708537850511,-1164.22,0.00021882,2]
[314712135,1708537850520,-2416.78,0.00021882,2]
[314712136,1708537850530,-500.0,0.00021882,2]
[314712137,1708537850540,-500.0,0.00021882,2]
[314712138,1708537850549,-500.0,0.00021882,2]
[314712139,1708537850558,-500.0,0.00021882,2]
[314712140,1708537850568,-500.0,0.00021882,2]
[314712141,1708537850577,-1251.84,0.00021882,2]
[314712142,1708537850590,-531.02,0.00021882,2]
[314712143,1708537850599,-500.0,0.00021883,2]
[314712144,1708537850608,-76042.20128526,0.00021889,2]
[314712145,1708537850617,-76042.20128526,0.00021892,2]
[314712146,1708537850627,-3144.95661215,0.00021916,2]
[314712147,1708537850637,-500.0,0.00021917,2]
[314712148,1708537850647,-500.0,0.00021917,2]
[314712149,1708537850658,-400.52042383,0.00021917,2]
[314712150,1708537850778,-603.34260693,0.00021917,5]
[314712151,1708537850790,-567.99,0.00021917,2]
[314712152,1708537850800,-10000.0,0.00021918,2]
[314712153,1708537850809,-7306.98257187,0.00021927,3]
[314712154,1708537850819,-428.03452617,0.00022,2]
[314712155,1708537850828,-247.6100214,0.00022,4]
[314712156,1708537850838,-155.07753877,0.00022,4]
[314712157,1708537850848,-7049.3139014,0.00022,2]
[314712158,1708537850858,-627.88613488,0.00022,2]
[314712159,1708537850867,-542.92721782,0.00022,2]
[314712160,1708537850878,-946.16985739,0.00022,2]
[314712161,1708537850887,-280511.92634568,0.00022,2]
[314712217,1708538403131,-170.61214699,0.00019686,2]
[314712218,1708538403152,-639.82470976,0.00019687,2]
[314712219,1708538403173,-500.0,0.00019688,2]
[314712220,1708538403195,-500.0,0.00019688,2]
[314712221,1708538403217,-500.0,0.00019688,2]
[314712222,1708538403241,-500.0,0.00019688,2]
[314712223,1708538403261,-646.49,0.00019688,2]
[314712224,1708538403283,-500.0,0.00019689,2]
[314712225,1708538403303,-500.0,0.00019689,2]
[314712226,1708538403324,-1248.04,0.00019689,2]
[314712227,1708538403345,-500.0,0.00019689,2]
[314712228,1708538403379,-500.0,0.00019689,2]
[314712229,1708538403401,-559.72,0.00019689,2]
[314712230,1708538403422,-500.0,0.00019689,2]
[314712231,1708538403445,-2125.06,0.00019689,2]
[314712232,1708538403466,-1041.64,0.00019689,2]
[314712233,1708538403490,-796.24,0.00019689,2]
[314712234,1708538403511,-2749.87,0.00019689,2]
[314712235,1708538403533,-2020.55,0.00019689,2]
[314712236,1708538403554,-500.0,0.00019689,2]
[314712237,1708538403575,-643.66,0.00019689,2]
[314712238,1708538403600,-1111.98,0.00019689,2]
[314712239,1708538403621,-782.4,0.00019689,2]
[314712240,1708538403643,-1559.57,0.00019689,2]
[314712241,1708538403663,-1231.89,0.00019689,2]
[314712242,1708538403683,-500.0,0.00019689,2]
[314712243,1708538403703,-621.33,0.00019689,2]
[314712244,1708538403723,-707.79,0.00019689,2]
[314712245,1708538403745,-1510.49,0.00019689,2]
[314712246,1708538403766,-376.84314325,0.00019689,2]
[314712247,1708538482475,-155.05271792,0.00019686,2]
[314712248,1708538482495,-300.0,0.00019687,2]
[314712249,1708538482517,-435.34685675,0.00019689,2]
[314712250,1708538482537,-3543.51,0.00019689,2]
[314712251,1708538482559,-542.74,0.00019689,2]
[314712252,1708538482581,-500.0,0.00019689,2]
[314712253,1708538482602,-500.0,0.00019689,2]
[314712254,1708538482623,-2036.51,0.00019689,2]
[314712255,1708538482645,-2635.29,0.00019689,2]
[314712256,1708538482665,-576.33,0.00019689,2]
[314712257,1708538482685,-632.12582258,0.00019689,2]
[314712258,1708538482704,-500.0,0.00019689,2]
[314712259,1708538482725,-749.8,0.00019689,2]
[314712260,1708538482746,-1494.59,0.00019689,2]
[314712261,1708538482765,-500.0,0.0001969,2]
[314712262,1708538482786,-5200.22,0.00019961,2]
[314712263,1708538482805,-500.0,0.00019962,2]
[314712264,1708538482827,-500.0,0.00019962,2]
[314712265,1708538482851,-500.0,0.00019962,2]
[314712266,1708538482871,-646.49,0.00019962,2]
[314712267,1708538482893,-500.0,0.00019962,2]
[314712268,1708538482914,-500.0,0.00019962,2]
[314712269,1708538482936,-6344.82,0.00019962,2]
[314712270,1708538482956,-500.0,0.00019963,2]
[314712271,1708538482976,-1248.04,0.00019963,2]
[314712272,1708538482997,-500.0,0.00019963,2]
[314712273,1708538483018,-500.0,0.00019963,2]
[314712274,1708538483038,-559.72,0.00019963,2]
[314712275,1708538483059,-500.0,0.00019963,2]
[314712276,1708538483082,-796.24,0.00019963,2]
[314712277,1708538483104,-2020.55,0.00019963,2]
[314712278,1708538483126,-1111.98,0.00019963,2]
[314712279,1708538483147,-1231.89,0.00019963,2]
[314712280,1708538483168,-500.0,0.00019963,2]
[314712281,1708538483187,-621.33,0.00019963,2]
[314712282,1708538483209,-707.79,0.00019963,2]
[314712283,1708538483229,-1510.49,0.00019963,2]
[314712284,1708538483250,-812.19,0.00019963,2]
[314712285,1708538483272,-3543.51,0.00019963,2]
[314712286,1708538483293,-542.74,0.00019963,2]
[314712287,1708538483315,-500.0,0.00019963,2]
[314712288,1708538483336,-202.77608159,0.00019963,2]
[314712289,1708538483357,-446.92852116,0.00019963,2]
[314712408,1708539038541,-155.05271792,0.00019687,2]
[314712410,1708539038551,-500.0,0.00019688,2]
[314712412,1708539038561,-1432.31,0.00019688,2]
[314712414,1708539038570,-300.0,0.00019688,2]
[314712416,1708539038579,-500.0,0.00019689,2]
[314712418,1708539038589,-500.0,0.00019689,2]
[314712420,1708539038599,-500.0,0.00019689,2]
[314712422,1708539038609,-500.0,0.00019689,2]
[314712424,1708539038618,-727.64,0.00019689,2]
[314712426,1708539038628,-1144.03,0.00019689,2]
[314712429,1708539038638,-500.0,0.00019689,2]
[314712431,1708539038648,-500.0,0.00019689,2]
[314712433,1708539038659,-718.56,0.00019689,2]
[314712434,1708539038668,-500.0,0.00019689,2]
[314712437,1708539038678,-1516.20953555,0.00019961,2]
[314712439,1708539038691,-4564.25046445,0.00019961,2]
[314712441,1708539038701,-500.0,0.00019961,2]
[314712443,1708539038711,-500.0,0.00019961,2]
[314712445,1708539038722,-171.58988847,0.00019961,2]
[314712718,1708539041753,-328.41011153,0.00019961,2]
[314712719,1708539041762,-300.71772027,0.00019961,2]
[314712721,1708539041774,-336.8721682,0.00019961,2]
[314713277,1708539047323,-360.65011153,0.00019961,2]
[314713279,1708539047333,-616.84,0.00019961,2]
[314713281,1708539047342,-341.52906192,0.00019961,2]
[314713283,1708539047353,-229.3329065,0.00019961,2]
[314724937,1708539748471,1000.0,0.00022,22]
[314725730,1708540245853,-155.06202481,0.0001996,2]
[314725732,1708540245862,-300.0,0.00019961,2]
[314725734,1708540245871,-500.0,0.00019962,2]
[314725736,1708540245881,-500.0,0.00019962,2]
[314725738,1708540245890,-500.0,0.00019962,2]
[314725740,1708540245899,-500.0,0.00019962,2]
[314725742,1708540245908,-500.0,0.00019962,2]
[314725744,1708540245918,-1129.23,0.00019962,2]
[314725746,1708540245927,-569.55,0.00019962,2]
[314725748,1708540245936,-1384.62,0.00019962,2]
[314725750,1708540245945,-552.32,0.00019963,2]
[314725752,1708540245954,-500.0,0.00019963,2]
[314725754,1708540245963,-500.0,0.00019963,2]
[314725757,1708540245983,-500.0,0.00019963,2]
[314725760,1708540245996,-697.32,0.00019963,2]
[314725762,1708540246005,-542.28628617,0.00019963,2]
[314725764,1708540246015,-500.0,0.00019963,2]
[314725766,1708540246024,-500.0,0.00019963,2]
[314725768,1708540246052,-500.0,0.00019963,2]
[314725770,1708540246061,-233.62846072,0.00019963,2]
[314725772,1708540246072,-351.9364662,0.0002,2]
[314725774,1708540246081,-500.0,0.00020221,2]
[314725776,1708540246091,-500.0,0.00020221,2]
[314725778,1708540246101,-500.0,0.00020221,2]
[314725780,1708540246111,-956.64,0.00020221,2]
[314725782,1708540246120,-637.5,0.00020221,2]
[314725784,1708540246129,-26.67783625,0.00020221,2]
[314725786,1708540246143,-274.98327931,0.00020221,2]
[314740361,1708540520605,8230.0382401,0.00019169,2]
[314740367,1708540629805,233.363329,0.00019177,2]
[314740380,1708541146496,233.363329,0.00019212,2]
[314740436,1708541431983,-639.82470976,0.00019852,2]
[314740437,1708541431992,-155.09926353,0.00019853,2]
[314740438,1708541432001,-186.38213482,0.0001986,2]
[314740439,1708541432010,-246.62354169,0.0001986,2]
[314740440,1708541432021,-155.09926353,0.00020199,2]
[314740441,1708541432030,-175.25,0.000202,2]
[314740442,1708541432039,-696.61,0.00020211,3]
[314740444,1708541432048,-8698.01549169,0.00020217,2]
[314740445,1708541432057,-1006.03894291,0.00020219,2]
[314740446,1708541432066,-500.0,0.00020219,2]
[314740447,1708541432075,-500.0,0.00020219,2]
[314740448,1708541432084,-512.17,0.00020219,2]
[314740449,1708541432093,-500.0,0.00020219,2]
[314740450,1708541432102,-589.85,0.00020219,2]
[314740451,1708541432111,-370.37465467,0.00020219,2]
[314740452,1708541432120,-500.0,0.00020219,2]
[314740453,1708541432129,-500.0,0.00020219,2]
[314740454,1708541432138,-822.68,0.00020219,2]
[314740456,1708541432147,-500.0,0.00020219,2]
[314740458,1708541432156,-232.08335974,0.00020219,2]
[314740460,1708541432165,-500.0,0.00020219,2]
[314740462,1708541432174,-1420.92,0.00020219,2]
[314740464,1708541432183,-500.0,0.00020219,2]
[314740466,1708541432192,-1469.2,0.00020219,2]
[314740468,1708541432203,-500.0,0.00020219,2]
[314740470,1708541432212,-500.0,0.00020219,2]
[314740473,1708541432223,-278.13278054,0.00020219,2]
[314740475,1708541432232,-1178.79,0.00020219,2]
[314740477,1708541432243,-500.0,0.00020219,2]
[314740478,1708541432252,-3939.5406059,0.00020219,2]
[314740481,1708541432266,-5199.6322542,0.00020219,2]
[314740483,1708541432277,-618.8471399,0.00020219,2]
[314740485,1708541432287,-785.95,0.00020219,2]
[314740487,1708541432297,-500.0,0.00020219,2]
[314740489,1708541432306,-303.63855094,0.00020219,2]
[314740491,1708541432315,-500.0,0.00020219,2]
[314740493,1708541432325,-951.69,0.00020219,2]
[314740495,1708541432334,-63.40236426,0.00020219,2]
[314740627,1708541443340,-2162.12296294,0.0002021,3]
[314740651,1708541449489,-17.37703706,0.0002021,3]
[314740653,1708541449499,-1816.25,0.00020211,3]
[314740655,1708541449509,-436.59763574,0.00020219,2]
[314740657,1708541449518,-500.0,0.00020219,2]
[314740659,1708541449527,-500.0,0.00020219,2]
[314740661,1708541449537,-500.0,0.00020219,2]
[314740663,1708541449545,-969.77,0.00020219,2]
[314740665,1708541449554,-500.0,0.00020219,2]
[314740667,1708541449563,-500.0,0.00020219,2]
[314740668,1708541449573,-500.0,0.00020219,2]
[314740669,1708541449582,-500.0,0.00020219,2]
[314740670,1708541449591,-500.0,0.00020219,2]
[314740671,1708541449600,-500.0,0.00020219,2]
[314740672,1708541449609,-4792.42,0.00020219,2]
[314740673,1708541449618,-7675.97399395,0.00020219,2]
[314740674,1708541449631,-1176.0,0.00020219,2]
[314740675,1708541449642,-1038.60600605,0.00020219,2]
[314740676,1708541449651,-500.0,0.00020219,2]
[314740677,1708541449659,-2282.94397895,0.00020219,2]
[314740678,1708541465133,9158.5831415,0.0001939,2]
[314740683,1708541578019,-639.82470976,0.00020208,2]
[314740684,1708541578043,-155.09926353,0.00020209,2]
[314740685,1708541578068,-2814.44,0.0002021,3]
[314740686,1708541578092,-321.02,0.00020211,3]
[314740687,1708541578116,-500.0,0.00020218,2]
[314740688,1708541578141,-5285.59,0.00020218,2]
[314740689,1708541578167,-1249.50602105,0.00020219,2]
[314740690,1708541578190,-151.0,0.00020219,2]
[314740691,1708541578235,-232.79719297,0.00020219,2]
[314740692,1708541578268,-2099.0,0.00020219,2]
[314740693,1708541578302,-2861.07,0.00020219,2]
[314740694,1708541578328,-500.0,0.00020219,2]
[314740695,1708541578352,-527.59,0.00020219,2]
[314740696,1708541578376,-500.0,0.00020219,2]
[314740697,1708541578397,-500.0,0.00020219,2]
[314740698,1708541578420,-565.27,0.00020219,2]
[314740699,1708541578443,-1382.55,0.00020219,2]
[314740700,1708541578702,-500.0,0.00020219,2]
[314740701,1708541578724,-500.0,0.00020219,2]
[314740702,1708541578748,-500.0,0.00020219,2]
[314740703,1708541578771,-500.0,0.00020219,2]
[314740704,1708541578791,-500.0,0.00020219,2]
[314740705,1708541578813,-500.0,0.00020219,2]
[314740706,1708541578834,-1068.11,0.00020219,2]
[314740707,1708541578858,-788.41,0.00020219,2]
[314740708,1708541578879,-500.0,0.00020219,2]
[314740709,1708541578901,-500.0,0.00020219,2]
[314740710,1708541578924,-283.60837072,0.00020219,2]
[314740711,1708541578946,-500.0,0.00020219,2]
[314740712,1708541578967,-1586.17,0.00020219,2]
[314740713,1708541578987,-611.24061641,0.00020219,2]
[314740714,1708541579008,-635.4,0.00020219,2]
[314740715,1708541579029,-815.31,0.00020219,2]
[314740716,1708541579049,-1407.99,0.00020219,2]
[314740717,1708541579070,-500.0,0.00020219,2]
[314740718,1708541579091,-500.0,0.00020219,2]
[314740719,1708541579111,-500.0,0.00020219,2]
[314740720,1708541579133,-1129.68,0.00020219,2]
[314740721,1708541579155,-500.0,0.00020219,2]
[314740722,1708541579177,-1361.71,0.00020219,2]
[314740723,1708541579197,-500.0,0.00020219,2]
[314740724,1708541579219,-551.96562463,0.0002022,2]
[314740725,1708541579241,-157.75823831,0.0002022,2]
[314740726,1708541579263,-500.0,0.0002022,2]
[314740727,1708541579283,-500.46440757,0.0002022,2]
[314740728,1708541579304,-500.0,0.0002022,2]
[314740729,1708541579325,-500.0,0.0002022,2]
[314740730,1708541579346,-1200.06,0.0002022,2]
[314740731,1708541579366,-500.0,0.0002022,2]
[314740732,1708541579387,-500.0,0.0002022,2]
[314740733,1708541579409,-500.0,0.0002022,2]
[314740734,1708541579430,-500.0,0.0002022,2]
[314740735,1708541579451,-500.0,0.0002022,2]
[314740736,1708541579472,-500.0,0.0002022,2]
[314740737,1708541579493,-500.0,0.0002022,2]
[314740738,1708541579514,-500.0,0.0002022,2]
[314740739,1708541579534,-500.0,0.0002022,2]
[314740740,1708541579555,-581.45,0.0002022,2]
[314740741,1708541579576,-500.0,0.0002022,2]
[314740742,1708541579597,-500.0,0.0002022,2]
[314740743,1708541579617,-663.69,0.0002022,2]
[314740744,1708541579637,-500.0,0.0002022,2]
[314740745,1708541579659,-500.0,0.0002022,2]
[314740746,1708541579680,-500.0,0.0002022,2]
[314740747,1708541579700,-2287.48,0.0002022,2]
[314740748,1708541579722,-515.78063484,0.0002022,2]
[314740749,1708541579743,-500.0,0.0002022,2]
[314740750,1708541579768,-329.67349528,0.0002022,2]
[314740751,1708541579789,-500.0,0.0002022,2]
[314740752,1708541579811,-500.0,0.0002022,2]
[314740753,1708541579834,-6630.09,0.0002022,2]
[314740754,1708541579858,-3701.59,0.0002022,2]
[314740755,1708541579880,-500.0,0.0002022,2]
[314740756,1708541579902,-1435.34,0.0002022,2]
[314740757,1708541579922,-500.0,0.0002022,2]
[314740758,1708541579943,-500.0,0.0002022,2]
[314740759,1708541579966,-500.0,0.0002022,2]
[314740760,1708541579986,-500.0,0.0002022,2]
[314740761,1708541580006,-2257.88,0.0002022,2]
[314740762,1708541580027,-1138.81,0.0002022,2]
[314740763,1708541580049,-2768.51,0.0002022,2]
[314740764,1708541580073,-503.33303702,0.0002022,2]
[314740765,1708541580094,-500.0,0.0002022,2]
[314740766,1708541580114,-500.0,0.0002022,2]